bitfinex-derivatives/quotes_BTCF0:USTF0_20250724
["timestamp","ask_amount","ask_price","bid_price","bid_amount"]
[1753363960894,2.07720778,118660.0,118650.0,0.18767669]
[1753363961093,2.07720778,118660.0,118650.0,0.007]
[1753363961795,2.07720778,118660.0,118650.0,0.1754718]
[1753363962796,1.03625288,118660.0,118650.0,0.1754718]
[1753363962989,2.14416826,118660.0,118650.0,0.1754718]
[1753363963789,0.0842482,118640.0,118620.0,0.0842525]
[1753363963994,0.1685144,118620.0,118610.0,0.02461]
[1753363964196,1.2785893,118620.0,118610.0,0.1931386]
[1753363964399,0.1685286,118610.0,118600.0,0.235279]
[1753363964590,1.9105635,118610.0,118600.0,0.235279]
[1753363965294,0.1615428,118600.0,118590.0,0.02461]
[1753363965592,1.85733651,118600.0,118590.0,0.193167]
[1753363965795,1.43806161,118600.0,118590.0,0.193167]
[1753363966195,1.42806161,118600.0,118590.0,0.193167]
[1753363967794,1.43506161,118600.0,118590.0,0.194167]
[1753363970000,2.07386161,118600.0,118590.0,0.291037]
[1753363970601,2.07786161,118600.0,118590.0,0.292037]
[1753363970790,1.90931881,118600.0,118590.0,0.292037]
[1753363971100,2.07786161,118600.0,118590.0,0.292037]
[1753363971397,2.07786161,118600.0,118590.0,0.277077]
[1753363971598,0.66678671,118600.0,118590.0,0.277077]
[1753363971803,0.66678671,118600.0,118590.0,0.292037]
[1753363971804,1.08606161,118600.0,118590.0,0.292037]
[1753363971998,0.55671881,118600.0,118590.0,0.292037]
[1753363972301,0.011,118600.0,118590.0,1.0721119]
[1753363972505,0.011,118600.0,118590.0,1.4421119]
[1753363972696,0.011,118600.0,118590.0,1.0721119]
[1753363972896,0.011,118600.0,118590.0,0.652837]
[1753363974003,0.011,118600.0,118590.0,1.4121119]
[1753363974199,0.011,118600.0,118590.0,0.992837]
[1753363974401,0.011,118600.0,118590.0,1.002837]
[1753363974601,0.011,118600.0,118590.0,0.652837]
[1753363975995,0.1795428,118600.0,118590.0,0.652837]
[1753363976195,0.4302749,118600.0,118590.0,0.292037]
[1753363976597,0.5988177,118600.0,118590.0,0.292037]
[1753363976802,0.011,118600.0,118590.0,0.292037]
[1753363977002,0.011,118600.0,118590.0,0.652837]
[1753363977204,0.011,118600.0,118590.0,0.292037]
[1753363977402,0.1795428,118600.0,118590.0,0.292037]
[1753363977606,0.011,118600.0,118590.0,0.292037]
[1753363977804,0.011,118600.0,118590.0,0.652837]
[1753363978704,0.1795428,118600.0,118590.0,0.652837]
[1753363979300,0.011,118600.0,118590.0,0.652837]
[1753363979811,0.011,118600.0,118590.0,0.65298205]
[1753363980001,0.1795428,118600.0,118590.0,0.65298205]
[1753363981502,1.2187377,118600.0,118590.0,0.29218205]
[1753363981702,1.2187377,118600.0,118590.0,0.24270205]
[1753363982014,0.7994628,118600.0,118590.0,0.29158205]
[1753363982404,1.5387377,118600.0,118590.0,0.29158205]
[1753363982604,1.1194628,118600.0,118590.0,0.29158205]
[1753363982808,1.5795377,118600.0,118590.0,0.29158205]
[1753363983113,1.9295377,118600.0,118590.0,0.29158205]
[1753363983313,1.9295377,118600.0,118590.0,0.19531205]
[1753363984722,1.9295377,118600.0,118590.0,0.29250205]
[1753363987226,1.5795377,118600.0,118590.0,0.29250205]
[1753363987527,1.5795377,118600.0,118590.0,1.01330205]
[1753363987528,0.011,118600.0,118590.0,1.01330205]
[1753363987721,0.011,118600.0,118590.0,1.07257695]
[1753363988028,0.011,118600.0,118590.0,0.65330205]
[1753363989427,0.3608,118630.0,118620.0,0.1685146]
[1753363989622,0.61944,118630.0,118620.0,0.6496546]
[1753363989820,0.61944,118630.0,118620.0,0.2888546]
[1753363990218,0.4192749,118640.0,118630.0,0.2168104]
[1753363990423,0.7877662,118640.0,118630.0,0.4152096]
[1753363990828,1.5270411,118640.0,118630.0,0.2337725]
[1753363991125,1.8878411,118640.0,118630.0,0.2337725]
[1753363991329,1.90714753,118640.0,118630.0,0.2337725]
[1753363991728,1.90714753,118640.0,118630.0,0.1916504]
[1753363991935,1.90714753,118640.0,118630.0,0.1916505]
[1753363992325,1.90714753,118640.0,118630.0,0.02315]
[1753363992525,1.90714753,118640.0,118630.0,0.1916505]
[1753363992727,0.1685005,118630.0,118620.0,0.192664]
[1753363992925,1.2885754,118630.0,118620.0,0.02415]
[1753363993126,1.2895754,118630.0,118620.0,0.1926647]
[1753363993326,1.2895754,118630.0,118620.0,0.02315]
[1753363994026,1.2895754,118630.0,118620.0,0.1916647]
[1753363994328,1.41703175,118630.0,118620.0,0.1916647]
[1753363996227,1.43633686,118630.0,118620.0,0.1916647]
[1753363997530,1.43633686,118630.0,118620.0,0.2405447]
[1753363997824,0.50856146,118630.0,118620.0,0.2888547]
[1753363998030,0.61956,118630.0,118620.0,0.6496547]
[1753363999036,0.7880609,118630.0,118620.0,0.6496547]
[1753363999734,0.7880609,118630.0,118620.0,0.2888547]
[1753363999939,1.2073358,118630.0,118620.0,0.2888547]
[1753364000127,1.5173358,118630.0,118620.0,0.2888547]
[1753364000330,1.2073358,118630.0,118620.0,0.2888547]
[1753364000531,1.96744369,118630.0,118620.0,0.02315]
[1753364000736,0.1685151,118620.0,118610.0,0.04217977]
[1753364000940,1.32859,118620.0,118610.0,0.04217977]
[1753364001141,1.4543275,118620.0,118610.0,0.04217977]
[1753364002040,0.1685293,118610.0,118600.0,0.2528043]
[1753364002240,1.5654842,118610.0,118600.0,0.2338188]
[1753364002538,1.9354842,118610.0,118600.0,0.2338188]
[1753364003442,1.5874842,118610.0,118600.0,0.2338188]
[1753364003645,1.5674842,118610.0,118600.0,0.2338188]
[1753364004143,1.5874842,118610.0,118600.0,0.2678288]
[1753364004540,1.5874842,118610.0,118600.0,0.3310088]
[1753364004541,1.5674842,118610.0,118600.0,0.3310088]
[1753364005038,0.61888,118610.0,118600.0,0.3310088]
[1753364005338,1.5674842,118610.0,118600.0,0.3310088]
[1753364006138,1.8874842,118610.0,118600.0,0.2338188]
[1753364006334,1.5674842,118610.0,118600.0,0.2338188]
[1753364006538,1.9074842,118610.0,118600.0,0.1916846]
[1753364006742,1.1482093,118610.0,118600.0,0.1916846]
[1753364006943,1.8774842,118610.0,118600.0,0.1916846]
[1753364007145,1.5674842,118610.0,118600.0,0.1916846]
[1753364007345,1.9074842,118610.0,118600.0,0.1916846]
[1753364007542,1.5874842,118610.0,118600.0,0.1916846]
[1753364007743,1.9474842,118610.0,118600.0,0.1916846]
[1753364008142,1.5874842,118610.0,118600.0,0.1916846]
[1753364008345,1.9174842,118610.0,118600.0,0.1916846]
[1753364008655,2.04411401,118610.0,118600.0,0.1916935]
[1753364009446,2.04411401,118610.0,118600.0,0.1685435]
[1753364009747,0.1685435,118600.0,118590.0,0.31780535]
[1753364009953,1.2686184,118600.0,118590.0,0.25173303]
[1753364010345,1.2686184,118600.0,118590.0,0.08318783]
[1753364010746,1.39486199,118600.0,118590.0,0.08318783]
[1753364010952,1.81413689,118600.0,118590.0,0.06048783]
[1753364011155,1.81413689,118600.0,118590.0,0.00114505]
[1753364011644,1.81513689,118600.0,118590.0,0.00114505]
[1753364012752,1.88192988,118600.0,118590.0,0.00114505]
[1753364015153,1.88192988,118600.0,118590.0,0.16970285]
[1753364015448,1.88192988,118600.0,118590.0,0.00114505]
[1753364016953,0.1685578,118590.0,118580.0,0.0001]
[1753364017155,1.8820727,118590.0,118580.0,0.0001]
[1753364017360,2.00789087,118590.0,118580.0,0.0001]
[1753364017953,2.00789087,118590.0,118580.0,0.168672]
[1753364018154,2.00789087,118590.0,118580.0,0.0001]
[1753364018459,2.00789087,118590.0,118580.0,0.0031]
[1753364019351,0.1685862,118570.0,118560.0,0.04183045]
[1753364019552,2.2527811,118570.0,118560.0,0.04183045]
[1753364019752,0.1686004,118560.0,118550.0,0.06034278]
[1753364019954,0.1686146,118550.0,118540.0,0.06034278]
[1753364020260,0.1686288,118540.0,118530.0,0.06034278]
[1753364020456,1.2987037,118540.0,118530.0,0.06034278]
[1753364020658,1.42440674,118540.0,118530.0,0.22898588]
[1753364020858,1.42440674,118540.0,118530.0,0.06034278]
[1753364021058,1.42440674,118540.0,118530.0,0.22898588]
[1753364021259,1.42240674,118540.0,118530.0,0.22898588]
[1753364021563,1.42240674,118540.0,118530.0,0.06034278]
[1753364021762,0.1686431,118530.0,118520.0,0.29385498]
[1753364021958,1.891718,118530.0,118520.0,0.29385498]
[1753364022166,1.888718,118530.0,118520.0,0.29385498]
[1753364022358,1.888718,118530.0,118520.0,0.25169108]
[1753364022554,2.01502465,118530.0,118520.0,0.0227]
[1753364022753,0.1686573,118520.0,118510.0,0.35482165]
[1753364022957,1.2787322,118520.0,118510.0,0.35482165]
[1753364023965,1.1000749,118520.0,118510.0,0.44941165]
[1753364024272,1.8806122,118520.0,118510.0,0.38906887]
[1753364025168,1.8816122,118520.0,118510.0,0.39006887]
[1753364025569,1.8816122,118520.0,118510.0,0.25331167]
[1753364025770,1.8816122,118520.0,118510.0,0.21114697]
[1753364025966,1.8818122,118520.0,118510.0,0.21114697]
[1753364026172,2.00911753,118520.0,118510.0,0.01978867]
[1753364026364,0.1686711,118510.0,118500.0,0.26950977]
[1753364026674,1.334896,118510.0,118500.0,0.26950977]
[1753364027670,1.334896,118510.0,118500.0,0.18517397]
[1753364027870,1.336896,118510.0,118500.0,0.18617397]
[1753364028274,0.5506111,118510.0,118500.0,0.28176397]
[1753364028464,0.99462,118510.0,118500.0,0.28176397]
[1753364028665,0.002,118510.0,118500.0,1.44183887]
[1753364028871,1.042971,118540.0,118530.0,0.2859326]
[1753364029074,1.986251,118540.0,118530.0,0.2859326]
[1753364029267,2.11322622,118540.0,118530.0,0.2859326]
[1753364029466,1.69395132,118540.0,118530.0,0.2859326]
[1753364029670,2.11322622,118540.0,118530.0,0.2859326]
[1753364030273,2.11967622,118540.0,118530.0,0.2859326]
[1753364030462,2.11967622,118540.0,118530.0,0.0227]
[1753364030974,0.1847926,118530.0,118520.0,0.1913524]
[1753364031175,0.1848068,118520.0,118510.0,0.32866119]
[1753364031372,1.9388017,118520.0,118510.0,0.33776119]
[1753364031573,1.9388017,118520.0,118510.0,0.13639739]
[1753364031779,1.9388017,118520.0,118510.0,0.30506849]
[1753364031969,1.9388017,118520.0,118510.0,0.04180739]
[1753364032172,1.9388017,118520.0,118510.0,0.21047849]
[1753364032667,1.5988017,118520.0,118510.0,0.24433849]
[1753364032868,0.7825768,118520.0,118510.0,0.30506849]
[1753364033074,0.906565,118530.0,118510.0,0.30506849]
[1753364033075,0.8666994,118530.0,118520.0,0.2859468]
[1753364033574,0.90920304,118530.0,118520.0,0.2859468]
[1753364033775,0.90919274,118530.0,118520.0,0.2859468]
[1753364034071,0.007,118540.0,118530.0,0.2395226]
[1753364034280,0.7893084,118540.0,118530.0,0.6003226]
[1753364034673,0.62068,118540.0,118530.0,0.6003226]
[1753364034871,0.7823084,118540.0,118530.0,0.6003226]
[1753364035071,0.1686217,118550.0,118540.0,0.1686284]
[1753364035270,0.7822617,118550.0,118540.0,0.2395084]
[1753364035470,1.21898945,118550.0,118540.0,0.2395084]
[1753364035677,1.32826435,118550.0,118540.0,0.2395084]
[1753364035868,1.64826435,118550.0,118540.0,0.2395084]
[1753364036274,2.02127435,118550.0,118540.0,0.1923284]
[1753364036581,2.02127435,118550.0,118540.0,0.0237]
[1753364036782,2.02127435,118550.0,118540.0,0.1923284]
[1753364036984,2.02127435,118550.0,118540.0,0.0237]
[1753364037483,2.02127435,118550.0,118540.0,0.1923284]
[1753364037777,1.40142435,118550.0,118540.0,0.2390884]
[1753364037984,0.006,118550.0,118540.0,0.8270753]
[1753364038182,0.009,118550.0,118540.0,1.8178753]
[1753364039283,0.009,118550.0,118540.0,1.3986004]
[1753364039677,0.61348,118580.0,118570.0,0.1685857]
[1753364039890,0.7327774,118580.0,118570.0,0.6008157]
[1753364040187,0.1878689,118580.0,118570.0,0.6008157]
[1753364040587,1.3279438,118580.0,118570.0,0.25859518]
[1753364040885,1.3279438,118580.0,118570.0,0.21183518]
[1753364040886,0.9741538,118580.0,118570.0,0.21183518]
[1753364041077,1.28416262,118580.0,118570.0,0.21183518]
[1753364041577,1.28816262,118580.0,118570.0,0.04424948]
[1753364041777,1.46051808,118580.0,118570.0,0.21283518]
[1753364041981,1.46551808,118580.0,118570.0,0.21383508]
[1753364042189,0.74333525,118580.0,118570.0,0.26059508]
[1753364042482,0.74333525,118580.0,118570.0,0.62139508]
[1753364042483,0.15548885,118580.0,118570.0,0.62139508]
[1753364042678,0.02830622,118580.0,118570.0,0.62139508]
[1753364044597,0.19687762,118580.0,118570.0,0.62139508]
[1753364045699,0.02830622,118580.0,118570.0,0.62139508]
[1753364046197,0.02830622,118580.0,118570.0,1.04066998]
[1753364046504,0.02830622,118580.0,118570.0,0.62139508]
[1753364047094,0.02830622,118580.0,118570.0,0.93139508]
[1753364047298,0.02830622,118580.0,118570.0,1.35066998]
[1753364047701,0.02830622,118580.0,118570.0,1.40066998]
[1753364047894,0.02830622,118580.0,118570.0,1.41066998]
[1753364048294,1.03279283,118610.0,118600.0,0.226433]
[1753364048496,0.58868163,118610.0,118600.0,0.239973]
[1753364048698,0.57450163,118610.0,118600.0,0.239973]
[1753364049402,0.5293288,118610.0,118600.0,0.239973]
[1753364049600,0.5495088,118610.0,118600.0,0.240973]
[1753364049897,0.5565088,118610.0,118600.0,0.241973]
[1753364050298,0.8965088,118610.0,118600.0,0.241973]
[1753364050499,0.5545088,118610.0,118600.0,0.240973]
[1753364050797,0.38598,118610.0,118600.0,0.240973]
[1753364051104,0.41697283,118610.0,118600.0,0.240973]
[1753364051599,0.011,118610.0,118600.0,0.601773]
[1753364051802,0.011,118610.0,118600.0,0.981773]
[1753364052004,0.011,118610.0,118600.0,0.601773]
[1753364052903,0.011,118610.0,118600.0,1.3810479]
[1753364053094,0.011,118610.0,118600.0,1.0210479]
[1753364053296,0.011,118610.0,118600.0,0.601773]
[1753364054698,0.011,118610.0,118600.0,0.941773]
[1753364054895,0.011,118610.0,118600.0,1.3610479]
[1753364055805,0.7797004,118630.0,118620.0,0.2154046]
[1753364056000,0.9141459,118640.0,118630.0,0.2868204]
[1753364056302,0.36,118640.0,118630.0,0.2868204]
[1753364056499,0.5536662,118640.0,118630.0,0.2868204]
[1753364056809,1.3767611,118640.0,118630.0,0.2868204]
[1753364057001,1.3962811,118640.0,118630.0,0.2868204]
[1753364057904,1.0354811,118640.0,118630.0,0.2868204]
[1753364058305,1.0384811,118640.0,118630.0,0.2868204]
[1753364058710,1.3992811,118640.0,118630.0,0.02467]
[1753364059003,0.1685004,118630.0,118620.0,0.2859775]
[1753364059201,2.0066953,118630.0,118620.0,0.3106475]
[1753364059506,0.8471004,118630.0,118620.0,0.3710775]
[1753364059707,0.928968,118640.0,118630.0,0.2153904]
[1753364059708,1.3783864,118640.0,118630.0,0.2153904]
[1753364060007,1.3191115,118640.0,118630.0,0.2868204]
[1753364060207,1.2348623,118640.0,118630.0,0.2868204]
[1753364061106,0.6242223,118640.0,118630.0,0.2868204]
[1753364061302,2.0313772,118640.0,118630.0,0.1931704]
[1753364061807,1.1896462,118640.0,118630.0,0.2868204]
[1753364062004,1.1916462,118640.0,118630.0,0.2868204]
[1753364062411,0.362,118640.0,118630.0,0.2868204]
[1753364062600,0.002,118640.0,118630.0,1.5654793]
[1753364063303,0.002,118640.0,118630.0,1.2554793]
[1753364064412,0.002,118640.0,118630.0,1.2354793]
[1753364064712,0.003,118640.0,118630.0,1.2354793]
[1753364066114,0.003,118640.0,118630.0,1.5554793]
[1753364066306,0.003,118640.0,118630.0,1.2354793]
[1753364066816,0.003,118640.0,118630.0,1.5554793]
[1753364067007,1.1662936,118670.0,118660.0,0.2882478]
[1753364067207,1.5188136,118670.0,118660.0,0.2882478]
[1753364067403,1.9380885,118670.0,118660.0,0.2745078]
[1753364067605,1.9380885,118670.0,118660.0,0.1933578]
[1753364067810,1.3266085,118670.0,118660.0,0.1933578]
[1753364068008,0.2587678,118660.0,118650.0,0.3109615]
[1753364068215,0.9595678,118660.0,118650.0,0.3109615]
[1753364069015,0.9595678,118660.0,118650.0,0.3724815]
[1753364069214,0.6195678,118660.0,118650.0,0.3724815]
[1753364069406,0.6695678,118660.0,118650.0,0.3724815]
[1753364070110,0.9495678,118660.0,118650.0,0.3724815]
[1753364070308,0.6615678,118660.0,118650.0,0.3724815]
[1753364070812,0.9815678,118660.0,118650.0,0.3724815]
[1753364071014,1.1528427,118660.0,118650.0,0.2105743]
[1753364071207,1.3628427,118660.0,118650.0,0.2105743]
[1753364071405,1.0428427,118660.0,118650.0,0.2105743]
[1753364071602,1.3728427,118660.0,118650.0,0.2354743]
[1753364072816,0.9535678,118660.0,118650.0,0.2354743]
[1753364073021,1.3728427,118660.0,118650.0,0.2354743]
[1753364073614,0.6235678,118660.0,118650.0,0.2354743]
[1753364073921,0.9535678,118660.0,118650.0,0.2354743]
[1753364074118,0.9735678,118660.0,118650.0,0.2354743]
[1753364074511,1.3928427,118660.0,118650.0,0.1684585]
[1753364074814,0.258782,118650.0,118640.0,0.2776189]
[1753364075013,1.9989369,118650.0,118640.0,0.2527189]
[1753364075210,1.0280569,118650.0,118640.0,0.2527189]
[1753364075422,0.70039,118650.0,118640.0,0.7333089]
[1753364075615,0.61008,118650.0,118640.0,0.7333089]
[1753364075920,0.70239,118660.0,118650.0,0.288262]
[1753364076215,0.97497335,118660.0,118650.0,0.649062]
[1753364076611,0.80451545,118660.0,118650.0,0.649062]
[1753364076810,0.17683545,118660.0,118650.0,0.649062]
[1753364077016,0.05019,118660.0,118650.0,0.649062]
[1753364077216,0.6459,118670.0,118660.0,0.2882479]
[1753364077416,0.02567,118680.0,118670.0,0.2404537]
[1753364077617,0.9713,118680.0,118670.0,0.2404537]
[1753364078223,0.0001,118680.0,118670.0,0.2404537]
[1753364079223,0.0021,118680.0,118670.0,0.2404537]
[1753364079728,0.0041,118680.0,118670.0,0.2404537]
[1753364079928,0.0151,118680.0,118670.0,0.2404537]
[1753364080227,0.05429,118680.0,118670.0,0.2882337]
[1753364081127,0.0151,118680.0,118670.0,0.2882337]
[1753364081323,0.0041,118680.0,118670.0,0.2882337]
[1753364081722,0.02967,118680.0,118670.0,0.2882337]
[1753364081931,0.05429,118680.0,118670.0,0.2882337]
[1753364082226,0.02300463,118680.0,118670.0,0.2882337]
[1753364083217,0.0041,118680.0,118670.0,0.2882337]
[1753364084134,0.0151,118680.0,118670.0,0.2882337]
[1753364084322,0.0041,118680.0,118670.0,0.2882337]
[1753364084526,0.0041,118680.0,118670.0,1.4383086]
[1753364084828,0.0041,118680.0,118670.0,1.0683086]
[1753364085432,0.0041,118680.0,118670.0,0.6490337]
[1753364086032,0.0041,118680.0,118670.0,1.0683086]
[1753364087322,0.03562,118710.0,118700.0,0.04778]
[1753364087530,0.39019,118710.0,118700.0,0.2881912]
[1753364087734,0.1615948,118710.0,118700.0,1.0189912]
[1753364088034,0.8279638,118720.0,118710.0,0.288177]
[1753364088330,1.77542618,118720.0,118710.0,0.288177]
[1753364088532,2.13622618,118720.0,118710.0,0.288177]
[1753364088727,2.13622618,118720.0,118710.0,0.274437]
[1753364088938,1.52682618,118720.0,118710.0,0.274437]
[1753364089128,2.15630488,118720.0,118710.0,0.10605]
[1753364089329,1.79550488,118720.0,118710.0,0.10605]
[1753364089632,0.258697,118710.0,118700.0,0.1932909]
[1753364089931,1.4087719,118710.0,118700.0,0.1932909]
[1753364090734,1.4087719,118710.0,118700.0,0.2266609]
[1753364090934,0.989497,118710.0,118700.0,0.2266609]
[1753364091435,1.4087719,118710.0,118700.0,0.2881809]
[1753364092036,1.4107719,118710.0,118700.0,0.2881809]
[1753364092240,0.981497,118710.0,118700.0,0.2881809]
[1753364092828,0.983497,118710.0,118700.0,0.2881809]
[1753364093338,0.623497,118710.0,118700.0,0.2881809]
[1753364093938,0.983497,118710.0,118700.0,0.2881809]
[1753364094132,1.4027719,118710.0,118700.0,0.2744511]
[1753364094435,0.2587111,118700.0,118690.0,0.226675]
[1753364094635,0.8690711,118700.0,118690.0,0.226675]
[1753364094936,0.70067,118700.0,118690.0,0.25686496]
[1753364095136,0.70067,118700.0,118690.0,0.29644496]
[1753364095730,0.64798,118700.0,118690.0,0.29644496]
[1753364096237,0.66255,118700.0,118690.0,0.29644496]
[1753364097433,0.64619,118700.0,118690.0,0.29644496]
[1753364097636,0.09242,118700.0,118690.0,0.290145]
[1753364097831,0.47242,118700.0,118690.0,0.290145]
[1753364098230,0.0709,118700.0,118690.0,0.290145]
[1753364098532,0.003,118700.0,118690.0,0.290145]
[1753364099236,0.003,118700.0,118690.0,0.65954954]
[1753364100441,0.43394,118700.0,118690.0,0.290145]
[1753364100634,0.43394,118700.0,118690.0,0.7094199]
[1753364100635,0.003,118700.0,118690.0,0.7094199]
[1753364100836,0.003,118700.0,118690.0,1.0702199]
[1753364101035,0.003,118700.0,118690.0,1.7143799]
[1753364101338,0.003,118700.0,118690.0,1.7043799]
[1753364101538,0.05082,118730.0,118720.0,0.2882527]
[1753364101739,0.30082,118730.0,118720.0,0.6490527]
[1753364101940,0.1769424,118730.0,118720.0,0.6490527]
[1753364102641,0.1945424,118730.0,118720.0,0.6490527]
[1753364102839,0.712901,118730.0,118720.0,0.2882527]
[1753364103132,0.9991373,118730.0,118720.0,0.2882527]
[1753364103339,0.748221,118730.0,118720.0,0.2882527]
[1753364103543,1.5374959,118730.0,118720.0,0.2882527]
[1753364103930,1.118221,118730.0,118720.0,0.2882527]
[1753364104130,0.9498624,118730.0,118720.0,0.2882527]
[1753364104343,0.5898624,118730.0,118720.0,0.2882527]
[1753364104537,0.5673424,118730.0,118720.0,0.2882527]
[1753364104742,0.002,118730.0,118720.0,0.6490527]
[1753364105042,0.40798,118750.0,118730.0,0.11988]
[1753364105246,0.75922,118750.0,118740.0,0.2882248]
[1753364105536,0.39842,118750.0,118740.0,0.2882248]
[1753364106243,0.5667506,118750.0,118740.0,0.2882248]
[1753364106439,0.9860255,118750.0,118740.0,0.2882248]
[1753364106735,0.9500706,118750.0,118740.0,0.2882248]
[1753364106944,1.3693455,118750.0,118740.0,0.2882248]
[1753364107238,0.39842,118750.0,118740.0,0.2882248]
[1753364107540,0.42094,118750.0,118740.0,0.2882248]
[1753364107837,0.001,118750.0,118740.0,1.07667984]
[1753364108335,0.001,118750.0,118740.0,1.28892494]
[1753364109127,0.002,118750.0,118740.0,1.70819984]
[1753364109333,0.002,118750.0,118740.0,1.28892494]
[1753364109639,0.001,118750.0,118740.0,1.70819984]
[1753364109841,0.001,118750.0,118740.0,1.60892494]
[1753364110045,0.9955669,118770.0,118740.0,1.60892494]
[1753364110046,0.05082,118780.0,118770.0,0.2881822]
[1753364110244,0.39082,118780.0,118770.0,0.6489822]
[1753364110442,0.51776334,118780.0,118770.0,0.6489822]
[1753364110936,0.51776334,118780.0,118770.0,0.2881822]
[1753364110937,0.68605144,118780.0,118770.0,0.2881822]
[1753364111532,1.14544634,118780.0,118770.0,0.11988]
[1753364111734,1.50624634,118780.0,118770.0,0.2734222]
[1753364111942,1.08897144,118780.0,118770.0,0.2734222]
[1753364112347,1.50824634,118780.0,118770.0,0.2881822]
[1753364113147,1.08897144,118780.0,118770.0,0.2881822]
[1753364113453,1.08697144,118780.0,118770.0,0.2881822]
[1753364113648,1.06545144,118780.0,118770.0,0.2881822]
[1753364113850,1.08797144,118780.0,118770.0,0.2881822]
[1753364114247,1.50924634,118780.0,118770.0,0.2881822]
[1753364114643,1.50924634,118780.0,118770.0,0.10512]
[1753364114945,1.48224634,118780.0,118770.0,0.10512]
[1753364115245,0.2071022,118770.0,118760.0,0.07231]
[1753364115456,1.9788971,118770.0,118760.0,0.1920264]
[1753364115650,1.63589618,118770.0,118760.0,0.2881964]
[1753364116242,1.70589618,118770.0,118760.0,0.2881964]
[1753364116538,1.32589618,118770.0,118760.0,0.2881964]
[1753364116741,1.69589618,118770.0,118760.0,0.2891964]
[1753364117039,1.68723618,118770.0,118760.0,0.2891964]
[1753364117243,1.69823618,118770.0,118760.0,0.2891964]
[1753364117642,2.11751108,118770.0,118760.0,0.001]
[1753364117954,0.2074706,118750.0,118740.0,0.1920459]
[1753364118154,1.1792306,118750.0,118740.0,0.2497959]
[1753364118351,0.1260786,118750.0,118740.0,1.0682908]
[1753364118647,1.22447,118770.0,118760.0,0.2881964]
[1753364118848,1.53447,118770.0,118760.0,0.11988]
[1753364119049,1.9115102,118770.0,118750.0,0.0486]
[1753364119257,0.9875313,118760.0,118750.0,0.02371]
[1753364119455,1.3275313,118760.0,118750.0,0.1920406]
[1753364119751,1.45450095,118760.0,118750.0,0.1920406]
[1753364119948,1.03522605,118760.0,118750.0,0.1920406]
[1753364120249,1.45450095,118760.0,118750.0,0.1940406]
[1753364120457,1.03522605,118760.0,118750.0,0.2902106]
[1753364120643,1.49450095,118760.0,118750.0,0.2902106]
[1753364120946,1.06522605,118760.0,118750.0,0.2902106]
[1753364121555,1.06522605,118760.0,118750.0,0.2882106]
[1753364121855,1.06522605,118760.0,118750.0,0.2892106]
[1753364122056,1.48450095,118760.0,118750.0,0.2892106]
[1753364122253,1.06522605,118760.0,118750.0,0.2892106]
[1753364122452,1.52870965,118760.0,118750.0,0.1930406]
[1753364122754,0.50772965,118760.0,118750.0,0.2892106]
[1753364122946,0.8823283,118770.0,118760.0,0.2158864]
[1753364123149,0.68194,118770.0,118760.0,0.7074713]
[1753364123342,0.77877538,118770.0,118760.0,0.2881964]
[1753364123550,1.12662538,118770.0,118760.0,0.2881964]
[1753364123746,0.12701538,118770.0,118760.0,0.2881964]
[1753364124849,0.12835538,118770.0,118760.0,0.2881964]
[1753364125552,0.12601538,118770.0,118760.0,0.2881964]
[1753364125748,0.12601538,118770.0,118760.0,1.45728275]
[1753364126052,0.12601538,118770.0,118760.0,1.10728275]
[1753364126252,0.12601538,118770.0,118760.0,1.08728275]
[1753364126456,0.12601538,118770.0,118760.0,1.39728275]
[1753364126654,0.12601538,118770.0,118760.0,0.66800785]
[1753364127354,0.12701538,118770.0,118760.0,0.66800785]
[1753364127756,0.12701538,118770.0,118760.0,1.08728275]
[1753364128054,0.12601538,118770.0,118760.0,0.66800785]
[1753364128558,0.12601538,118770.0,118760.0,0.66900785]
[1753364128752,0.12601538,118770.0,118760.0,1.08828275]
[1753364128954,0.12601538,118770.0,118760.0,1.46828275]
[1753364129464,0.12601538,118770.0,118760.0,1.30008785]
[1753364130247,0.29431758,118770.0,118760.0,1.08828275]
[1753364130453,0.14497538,118770.0,118760.0,0.93896785]
[1753364130654,0.31327758,118770.0,118760.0,0.93896785]
[1753364131159,0.69245758,118770.0,118760.0,0.30820785]
[1753364131355,1.47253248,118770.0,118760.0,0.02001145]
[1753364131556,1.47253248,118770.0,118760.0,0.001]
[1753364131855,0.1859364,118760.0,118750.0,0.01886174]
[1753364132060,1.9757713,118760.0,118750.0,0.01886174]
[1753364132261,2.1022718,118760.0,118750.0,0.01886174]
[1753364132652,1.4720318,118760.0,118750.0,0.01886174]
[1753364132961,2.1017118,118760.0,118750.0,0.00068174]
[1753364133356,2.1017118,118760.0,118750.0,0.00168174]
[1753364133557,1.6824369,118760.0,118750.0,0.00168174]
[1753364133957,2.1017118,118760.0,118750.0,0.00168174]
[1753364134263,0.1718206,118750.0,118740.0,0.1917429]
[1753364134467,0.1718206,118750.0,118730.0,0.27087016]
[1753364134468,0.1718347,118740.0,118730.0,0.27087016]
[1753364134663,1.9124696,118740.0,118730.0,0.27087016]
[1753364134855,2.03873759,118740.0,118730.0,0.07912106]
[1753364135566,2.03873759,118740.0,118730.0,0.24747996]
[1753364135767,2.03873759,118740.0,118730.0,0.07912106]
[1753364135973,1.61946269,118740.0,118730.0,0.07912106]
[1753364136267,2.03873759,118740.0,118730.0,0.24747996]
[1753364136458,2.03873759,118740.0,118730.0,0.07912106]
[1753364136655,2.20717759,118740.0,118730.0,0.07912106]
[1753364136860,2.45717759,118740.0,118730.0,0.01896172]
[1753364137160,0.1705231,118720.0,118710.0,0.08355934]
[1753364137361,2.293178,118720.0,118710.0,0.1917873]
[1753364137564,2.42015768,118720.0,118710.0,0.1917873]
[1753364138769,2.42015768,118720.0,118710.0,0.1957873]
[1753364139162,2.42015768,118720.0,118710.0,0.0274]
[1753364139370,2.42015768,118720.0,118710.0,0.1957873]
[1753364140166,2.00088278,118720.0,118710.0,0.2927373]
[1753364141071,2.42015768,118720.0,118710.0,0.2927373]
[1753364141276,2.00088278,118720.0,118710.0,0.2927373]
[1753364141663,1.47170968,118720.0,118710.0,0.2927373]
[1753364141859,0.49126968,118720.0,118710.0,0.2927373]
[1753364142073,0.12697968,118720.0,118710.0,0.2927373]
[1753364142270,0.99142,118730.0,118720.0,0.2867231]
[1753364142570,0.99365,118740.0,118730.0,0.2867089]
[1753364142770,1.36016,118740.0,118730.0,0.2867089]
[1753364143074,0.64733526,118740.0,118730.0,0.2867089]
[1753364143266,0.6307,118750.0,118740.0,0.2151447]
[1753364143267,0.36214,118750.0,118740.0,0.2151447]
[1753364143462,1.33008,118750.0,118740.0,0.2866947]
[1753364143670,1.1170324,118750.0,118740.0,0.2866947]
[1753364143870,1.4570324,118750.0,118740.0,0.2866947]
[1753364144059,1.1170324,118750.0,118740.0,0.2866947]